fUST/lending_fUST_20250220
["ID","MTS","AMOUNT","RATE_DAILY","PERIOD"]
[353683541,1739988656415,-1101.67,0.00014684,2]
[353683543,1739988656425,-1533.09,0.00014684,2]
[353683545,1739988656436,-7584.55,0.00014684,2]
[353683547,1739988656447,-2979.97,0.00014684,2]
[353683549,1739988656460,-500.0,0.00014684,2]
[353683551,1739988656470,-500.0,0.00014684,2]
[353683553,1739988656479,-633.93,0.00014684,2]
[353683555,1739988656489,-703.24,0.00014684,2]
[353683557,1739988656499,-751.62,0.00014684,2]
[353683559,1739988656509,-151.0,0.000147,2]
[353683561,1739988656518,-1000.0,0.00014721,2]
[353683563,1739988656528,-501.30101814,0.00014721,2]
[353683565,1739988656538,-1000.0,0.00014721,2]
[353683567,1739988656549,-4438.17088325,0.00014749,2]
[353683569,1739988656559,-897.237,0.0001475,2]
[353683571,1739988656570,-169.481,0.0001475,2]
[353683573,1739988656580,-500.0,0.00014767,2]
[353683575,1739988656590,-741.51,0.00014767,2]
[353683577,1739988656600,-674.11,0.00014767,2]
[353683579,1739988656610,-500.0,0.00014767,2]
[353683581,1739988656620,-500.0,0.00014767,2]
[353683583,1739988656630,-500.0,0.00014767,2]
[353683584,1739988656640,-709.3,0.00014767,2]
[353683586,1739988656651,-500.0,0.00014767,2]
[353683588,1739988656667,-634.2,0.00014767,2]
[353683590,1739988656677,-500.0,0.00014767,2]
[353683592,1739988656687,-504.41,0.00014767,2]
[353683594,1739988656696,-589.83,0.00014767,2]
[353683596,1739988656707,-23447.01,0.00014767,2]
[353683598,1739988656716,-903.6,0.00014767,2]
[353683600,1739988656727,-661.75,0.00014767,2]
[353683602,1739988656737,-560.56,0.00014767,2]
[353683604,1739988656747,-952.78,0.00014767,2]
[353683606,1739988656756,-2315.57,0.00014767,2]
[353683608,1739988656767,-3025.53,0.00014767,2]
[353683610,1739988656776,-1175.6,0.00014767,2]
[353683612,1739988656785,-500.0,0.00014767,2]
[353683613,1739988656794,-979.27,0.00014767,2]
[353683616,1739988656805,-613.65884181,0.00014767,2]
[353683618,1739988656815,-8610.83,0.00014767,2]
[353683620,1739988656826,-587.77,0.00014767,2]
[353683622,1739988656837,-981.23,0.00014767,2]
[353683624,1739988656846,-1054.51,0.00014767,2]
[353683626,1739988656857,-491.26987979,0.00014767,2]
[353683628,1739988656867,-707.81,0.00014767,2]
[353683630,1739988656878,-2015.79,0.00014767,2]
[353683632,1739988656887,-500.0,0.00014767,2]
[353683634,1739988656898,-1163.81,0.00014767,2]
[353683636,1739988656907,-500.0,0.00014767,2]
[353683638,1739988656920,-500.0,0.00014767,2]
[353683640,1739988656930,-2382.21,0.00014767,2]
[353683642,1739988656940,-6044.15,0.00014767,2]
[353683644,1739988656950,-1011.0,0.00014767,2]
[353683646,1739988656960,-439.71079483,0.00014767,2]
[353683648,1739988656970,-1268.26,0.00014767,2]
[353683650,1739988656980,-2033.33,0.00014767,2]
[353683652,1739988656989,-1189.52,0.00014767,2]
[353683654,1739988657000,-2055.1,0.00014767,2]
[353683656,1739988657011,-1101.67,0.00014767,2]
[353683658,1739988657021,-1533.09,0.00014767,2]
[353683660,1739988657031,-7584.55,0.00014767,2]
[353683662,1739988657042,-2979.97,0.00014767,2]
[353683664,1739988657051,-500.0,0.00014767,2]
[353683666,1739988657062,-500.0,0.00014767,2]
[353683668,1739988657072,-633.93,0.00014767,2]
[353683670,1739988657083,-703.24,0.00014767,2]
[353683672,1739988657092,-751.62,0.00014767,2]
[353683674,1739988657103,-151.0,0.000148,2]
[353683676,1739988657113,-187791.894283,0.000148,2]
[353683678,1739988657124,-905.76027442,0.00014831,2]
[353683680,1739988657135,-500.0,0.00014849,2]
[353683682,1739988657144,-741.51,0.00014849,2]
[353683684,1739988657154,-674.11,0.00014849,2]
[353683686,1739988657165,-500.0,0.00014849,2]
[353683688,1739988657175,-500.0,0.00014849,2]
[353683690,1739988657185,-405.81352981,0.00014849,2]
[353683692,1739988657195,-709.3,0.00014849,2]
[353683694,1739988657206,-506.261334,0.00014849,2]
[353683696,1739988657216,-634.2,0.00014849,2]
[353683698,1739988657227,-500.0,0.00014849,2]
[353683700,1739988657237,-504.41,0.00014849,2]
[353683702,1739988657246,-589.83,0.00014849,2]
[353683704,1739988657256,-23447.01,0.00014849,2]
[353683706,1739988657267,-903.6,0.00014849,2]
[353683708,1739988657277,-661.75,0.00014849,2]
[353683710,1739988657287,-560.56,0.00014849,2]
[353683712,1739988657296,-952.78,0.00014849,2]
[353683714,1739988657306,-2315.57,0.00014849,2]
[353683717,1739988657317,-3025.53,0.00014849,2]
[353683718,1739988657326,-1175.6,0.00014849,2]
[353683721,1739988657336,-500.0,0.00014849,2]
[353683722,1739988657345,-979.27,0.00014849,2]
[353683724,1739988657355,-8610.83,0.00014849,2]
[353683726,1739988657366,-587.77,0.00014849,2]
[353683728,1739988657376,-981.23,0.00014849,2]
[353683730,1739988657386,-1054.51,0.00014849,2]
[353683733,1739988657396,-2015.79,0.00014849,2]
[353683734,1739988657430,-707.81,0.00014849,2]
[353683736,1739988657441,-500.0,0.00014849,2]
[353683739,1739988657451,-1163.81,0.00014849,2]
[353683741,1739988657461,-500.0,0.00014849,2]
[353683743,1739988657471,-500.0,0.00014849,2]
[353683744,1739988657481,-2382.21,0.00014849,2]
[353683747,1739988657491,-6044.15,0.00014849,2]
[353683749,1739988657502,-1011.0,0.00014849,2]
[353683751,1739988657511,-1268.26,0.00014849,2]
[353683752,1739988657522,-2033.33,0.00014849,2]
[353683755,1739988657532,-1189.52,0.00014849,2]
[353683757,1739988657543,-2055.1,0.00014849,2]
[353683759,1739988657555,-1101.67,0.00014849,2]
[353683761,1739988657565,-1533.09,0.00014849,2]
[353683763,1739988657577,-7584.55,0.00014849,2]
[353683765,1739988657587,-2979.97,0.00014849,2]
[353683770,1739988657665,-500.0,0.00014849,2]
[353683771,1739988657676,-500.0,0.00014849,2]
[353683772,1739988657686,-633.93,0.00014849,2]
[353683773,1739988657697,-703.24,0.00014849,2]
[353683775,1739988657706,-751.62,0.00014849,2]
[353683777,1739988657718,-269.5590731,0.00014853,2]
[353683779,1739988657729,-605.65031961,0.00014873,2]
[353683781,1739988657739,-184.97113629,0.00014873,2]
[353683783,1739988657748,-500.0,0.00014873,2]
[353683785,1739988657758,-500.0,0.00014873,2]
[353683787,1739988657768,-515145.139198,0.000149,2]
[353683788,1739988657778,-539.52,0.00014931,2]
[353683791,1739988657788,-741.51,0.00014931,2]
[353683793,1739988657797,-674.11,0.00014931,2]
[353683795,1739988657807,-500.0,0.00014931,2]
[353683797,1739988657816,-500.0,0.00014931,2]
[353683799,1739988657827,-709.3,0.00014931,2]
[353683800,1739988657838,-634.2,0.00014931,2]
[353683803,1739988657848,-500.0,0.00014931,2]
[353683804,1739988657857,-504.41,0.00014931,2]
[353683806,1739988657867,-589.83,0.00014931,2]
[353683808,1739988657879,-23447.01,0.00014931,2]
[353683810,1739988657889,-903.6,0.00014931,2]
[353683812,1739988657899,-661.75,0.00014931,2]
[353683814,1739988657912,-560.56,0.00014931,2]
[353683816,1739988657922,-952.78,0.00014931,2]
[353683818,1739988657932,-2315.57,0.00014931,2]
[353683820,1739988657942,-3025.53,0.00014931,2]
[353683822,1739988657952,-1175.6,0.00014931,2]
[353683824,1739988657961,-500.0,0.00014931,2]
[353683826,1739988657971,-979.27,0.00014931,2]
[353683828,1739988657981,-8610.83,0.00014931,2]
[353683830,1739988657995,-587.77,0.00014931,2]
[353683833,1739988658005,-981.23,0.00014931,2]
[353683835,1739988658014,-1054.51,0.00014931,2]
[353683837,1739988658025,-2015.79,0.00014931,2]
[353683839,1739988658036,-707.81,0.00014931,2]
[353683841,1739988658046,-500.0,0.00014931,2]
[353683843,1739988658056,-1163.81,0.00014931,2]
[353683845,1739988658066,-500.0,0.00014931,2]
[353683847,1739988658076,-500.0,0.00014931,2]
[353683849,1739988658086,-2382.21,0.00014931,2]
[353683851,1739988658099,-6044.15,0.00014931,2]
[353683853,1739988658110,-1011.0,0.00014931,2]
[353683855,1739988658121,-1268.26,0.00014931,2]
[353683857,1739988658133,-2033.33,0.00014931,2]
[353683859,1739988658145,-1189.52,0.00014931,2]
[353683861,1739988658156,-2055.1,0.00014931,2]
[353683863,1739988658172,-1101.67,0.00014931,2]
[353683865,1739988658183,-1533.09,0.00014931,2]
[353683867,1739988658196,-7584.55,0.00014931,2]
[353683870,1739988658210,-2979.97,0.00014931,2]
[353683872,1739988658221,-500.0,0.00014931,2]
[353683874,1739988658233,-500.0,0.00014931,2]
[353683876,1739988658245,-633.93,0.00014931,2]
[353683878,1739988658257,-703.24,0.00014931,2]
[353683879,1739988658268,-751.62,0.00014931,2]
[353683881,1739988658280,-466.58002398,0.0001499,2]
[353683883,1739988658291,-151.0,0.00015,2]
[353683885,1739988658302,-741.51,0.00015013,2]
[353683887,1739988658312,-674.11,0.00015013,2]
[353683889,1739988658323,-197.81813284,0.00015013,2]
[353683892,1739988658335,-500.0,0.00015013,2]
[353683894,1739988658345,-709.3,0.00015013,2]
[353683896,1739988658356,-634.2,0.00015013,2]
[353683898,1739988658367,-207.33024915,0.00015013,2]
[353683900,1739988658377,-504.41,0.00015013,2]
[353683902,1739988658388,-589.83,0.00015013,2]
[353683903,1739988658398,-3854.39203398,0.00015013,2]
[353683921,1739988658564,-19592.61796602,0.00015013,2]
[353683923,1739988658575,-903.6,0.00015013,2]
[353683925,1739988658584,-661.75,0.00015013,2]
[353683927,1739988658595,-560.56,0.00015013,2]
[353683929,1739988658605,-952.78,0.00015013,2]
[353683931,1739988658615,-2315.57,0.00015013,2]
[353683933,1739988658625,-3025.53,0.00015013,2]
[353683935,1739988658635,-1175.6,0.00015013,2]
[353683937,1739988658646,-500.0,0.00015013,2]
[353683939,1739988658660,-979.27,0.00015013,2]
[353683941,1739988658670,-8610.83,0.00015013,2]
[353683943,1739988658680,-587.77,0.00015013,2]
[353683945,1739988658689,-981.23,0.00015013,2]
[353683946,1739988658702,-1054.51,0.00015013,2]
[353683949,1739988658713,-2015.79,0.00015013,2]
[353683951,1739988658722,-707.81,0.00015013,2]
[353683952,1739988658733,-500.0,0.00015013,2]
[353683954,1739988658743,-1163.81,0.00015013,2]
[353683956,1739988658753,-381.24,0.00015013,2]
[353683958,1739988658762,-500.0,0.00015013,2]
[353683968,1739988658840,-2382.21,0.00015013,2]
[353683970,1739988658851,-6044.15,0.00015013,2]
[353683972,1739988658861,-1011.0,0.00015013,2]
[353683974,1739988658871,-1268.26,0.00015013,2]
[353683976,1739988658881,-2033.33,0.00015013,2]
[353683978,1739988658892,-1189.52,0.00015013,2]
[353683980,1739988658901,-2055.1,0.00015013,2]
[353683982,1739988658913,-1101.67,0.00015013,2]
[353683984,1739988658925,-1533.09,0.00015013,2]
[353683986,1739988658935,-7584.55,0.00015013,2]
[353683989,1739988658946,-2194.01830888,0.00015013,2]
[353683991,1739988658961,-785.95169112,0.00015013,2]
[353683993,1739988658972,-500.0,0.00015013,2]
[353683995,1739988658983,-343.24368693,0.00015013,2]
[353683997,1739988658994,-633.93,0.00015013,2]
[353683999,1739988659005,-703.24,0.00015013,2]
[353684001,1739988659015,-751.62,0.00015013,2]
[353684004,1739988659025,-741.51,0.00015095,2]
[353684006,1739988659035,-674.11,0.00015095,2]
[353684007,1739988659045,-358.28638197,0.00015095,2]
[353684010,1739988659056,-709.3,0.00015095,2]
[353684012,1739988659066,-634.2,0.00015095,2]
[353684014,1739988659075,-504.41,0.00015095,2]
[353684016,1739988659085,-589.83,0.00015095,2]
[353684018,1739988659094,-5197.53144942,0.00015095,2]
[353684020,1739988659107,-2818.37280882,0.00015095,2]
[353684022,1739988659119,-15431.10574176,0.00015095,2]
[353684024,1739988659129,-903.6,0.00015095,2]
[353684026,1739988659138,-560.56,0.00015095,2]
[353684028,1739988659147,-661.75,0.00015095,2]
[353684030,1739988659157,-952.78,0.00015095,2]
[353684032,1739988659169,-564.00425824,0.00015095,2]
[353684042,1739988659258,-500.0,0.00013698,2]
[353684044,1739988659268,-500.0,0.0001378,2]
[353684047,1739988659279,-500.0,0.00013863,2]
[353684049,1739988659288,-500.0,0.00013945,2]
[353684050,1739988659298,-500.0,0.00014027,2]
[353684052,1739988659308,-500.0,0.00014109,2]
[353684055,1739988659318,-458.44,0.00014191,2]
[353684057,1739988659329,-1751.56574176,0.00015095,2]
[353684059,1739988659339,-3025.53,0.00015095,2]
[353684061,1739988659349,-1175.6,0.00015095,2]
[353684063,1739988659359,-500.0,0.00015095,2]
[353684065,1739988659369,-979.27,0.00015095,2]
[353684067,1739988659379,-8610.83,0.00015095,2]
[353684069,1739988659389,-587.77,0.00015095,2]
[353684071,1739988659399,-981.23,0.00015095,2]
[353684073,1739988659409,-1054.51,0.00015095,2]
[353684075,1739988659420,-2015.79,0.00015095,2]
[353684077,1739988659430,-707.81,0.00015095,2]
[353684079,1739988659440,-500.0,0.00015095,2]
[353684081,1739988659450,-1163.81,0.00015095,2]
[353684083,1739988659459,-500.0,0.00015095,2]
[353684085,1739988659470,-2382.21,0.00015095,2]
[353684087,1739988659480,-6044.15,0.00015095,2]
[353684089,1739988659490,-1011.0,0.00015095,2]
[353684091,1739988659500,-1268.26,0.00015095,2]
[353684093,1739988659511,-2033.33,0.00015095,2]
[353684095,1739988659521,-1189.52,0.00015095,2]
[353684097,1739988659532,-2055.1,0.00015095,2]
[353684099,1739988659541,-1101.67,0.00015095,2]
[353684102,1739988659552,-1533.09,0.00015095,2]
[353684104,1739988659563,-7584.55,0.00015095,2]
[353684106,1739988659572,-2979.97,0.00015095,2]
[353684108,1739988659583,-500.0,0.00015095,2]
[353684110,1739988659593,-633.93,0.00015095,2]
[353684112,1739988659602,-703.24,0.00015095,2]
[353684114,1739988659612,-751.62,0.00015095,2]
[353684116,1739988659622,-741.51,0.00015178,2]
[353684118,1739988659632,-674.11,0.00015178,2]
[353684120,1739988659642,-709.3,0.00015178,2]
[353684122,1739988659653,-634.2,0.00015178,2]
[353684124,1739988659667,-504.41,0.00015178,2]
[353684126,1739988659678,-589.83,0.00015178,2]
[353684128,1739988659688,-23447.01,0.00015178,2]
[353684130,1739988659698,-903.6,0.00015178,2]
[353684132,1739988659708,-560.56,0.00015178,2]
[353684134,1739988659717,-661.75,0.00015178,2]
[353684136,1739988659727,-952.78,0.00015178,2]
[353684138,1739988659737,-2315.57,0.00015178,2]
[353684140,1739988659746,-3025.53,0.00015178,2]
[353684142,1739988659756,-1175.6,0.00015178,2]
[353684144,1739988659766,-500.0,0.00015178,2]
[353684146,1739988659775,-979.27,0.00015178,2]
[353684148,1739988659785,-8610.83,0.00015178,2]
[353684150,1739988659794,-587.77,0.00015178,2]
[353684152,1739988659803,-981.23,0.00015178,2]
[353684154,1739988659813,-1054.51,0.00015178,2]
[353684156,1739988659822,-707.81,0.00015178,2]
[353684158,1739988659831,-2015.79,0.00015178,2]
[353684160,1739988659840,-500.0,0.00015178,2]
[353684162,1739988659850,-1163.81,0.00015178,2]
[353684164,1739988659860,-500.0,0.00015178,2]
[353684166,1739988659869,-2382.21,0.00015178,2]
[353684168,1739988659879,-6044.15,0.00015178,2]
[353684170,1739988659889,-1011.0,0.00015178,2]
[353684172,1739988659899,-1268.26,0.00015178,2]
[353684174,1739988659908,-2033.33,0.00015178,2]
[353684176,1739988659919,-1189.52,0.00015178,2]
[353684178,1739988659928,-2055.1,0.00015178,2]
[353684187,1739988659938,-1101.67,0.00015178,2]
[353684189,1739988660009,-1533.09,0.00015178,2]
[353684191,1739988660020,-7584.55,0.00015178,2]
[353684193,1739988660031,-2979.97,0.00015178,2]
[353684195,1739988660042,-500.0,0.00015178,2]
[353684197,1739988660052,-633.93,0.00015178,2]
[353684200,1739988660062,-703.24,0.00015178,2]
[353684202,1739988660073,-751.62,0.00015178,2]
[353684204,1739988660084,-1500.0,0.00015222,2]
[353684206,1739988660094,-1144.4288868,0.00015222,2]
[353684208,1739988660104,-1500.0,0.00015222,2]
[353684210,1739988660114,-741.51,0.0001526,2]
[353684212,1739988660123,-674.11,0.0001526,2]
[353684214,1739988660132,-709.3,0.0001526,2]
[353684216,1739988660142,-634.2,0.0001526,2]
[353684218,1739988660151,-504.41,0.0001526,2]
[353684220,1739988660162,-589.83,0.0001526,2]
[353684222,1739988660171,-23447.01,0.0001526,2]
[353684224,1739988660181,-903.6,0.0001526,2]
[353684226,1739988660191,-661.75,0.0001526,2]
[353684228,1739988660201,-560.56,0.0001526,2]
[353684230,1739988660211,-952.78,0.0001526,2]
[353684232,1739988660220,-2315.57,0.0001526,2]
[353684234,1739988660229,-3025.53,0.0001526,2]
[353684236,1739988660240,-1175.6,0.0001526,2]
[353684238,1739988660250,-585.92,0.0001526,2]
[353684240,1739988660260,-979.27,0.0001526,2]
[353684242,1739988660269,-8610.83,0.0001526,2]
[353684244,1739988660279,-587.77,0.0001526,2]
[353684246,1739988660288,-981.23,0.0001526,2]
[353684248,1739988660297,-1054.51,0.0001526,2]
[353684250,1739988660307,-707.81,0.0001526,2]
[353684252,1739988660317,-2015.79,0.0001526,2]
[353684254,1739988660327,-500.0,0.0001526,2]
[353684256,1739988660336,-1163.81,0.0001526,2]
[353684258,1739988660346,-500.0,0.0001526,2]
[353684260,1739988660357,-2382.21,0.0001526,2]
[353684262,1739988660369,-6044.15,0.0001526,2]
[353684264,1739988660378,-1011.0,0.0001526,2]
[353684266,1739988660388,-1268.26,0.0001526,2]
[353684268,1739988660397,-2033.33,0.0001526,2]
[353684270,1739988660407,-1189.52,0.0001526,2]
[353684272,1739988660418,-1101.67,0.0001526,2]
[353684274,1739988660427,-2055.1,0.0001526,2]
[353684276,1739988660437,-1533.09,0.0001526,2]
[353684278,1739988660449,-7584.55,0.0001526,2]
[353684280,1739988660460,-2979.97,0.0001526,2]
[353684282,1739988660470,-232.14,0.0001526,2]
[353684284,1739988660480,-633.93,0.0001526,2]
[353684286,1739988660490,-703.24,0.0001526,2]
[353684288,1739988660500,-751.62,0.0001526,2]
[353684290,1739988660510,-151.0,0.000153,2]
[353684292,1739988660519,-741.51,0.00015342,2]
[353684294,1739988660529,-674.11,0.00015342,2]
[353684296,1739988660539,-709.3,0.00015342,2]
[353684298,1739988660549,-634.2,0.00015342,2]
[353684300,1739988660559,-504.41,0.00015342,2]
[353684302,1739988660569,-589.83,0.00015342,2]
[353684305,1739988660581,-23447.01,0.00015342,2]
[353684306,1739988660592,-903.6,0.00015342,2]
[353684308,1739988660603,-661.75,0.00015342,2]
[353684310,1739988660613,-560.56,0.00015342,2]
[353684312,1739988660623,-952.78,0.00015342,2]
[353684314,1739988660633,-2315.57,0.00015342,2]
[353684316,1739988660642,-3025.53,0.00015342,2]
[353684318,1739988660655,-1175.6,0.00015342,2]
[353684320,1739988660668,-979.27,0.00015342,2]
[353684322,1739988660678,-8610.83,0.00015342,2]
[353684324,1739988660689,-587.77,0.00015342,2]
[353684325,1739988660699,-981.23,0.00015342,2]
[353684327,1739988660709,-1054.51,0.00015342,2]
[353684329,1739988660718,-707.81,0.00015342,2]
[353684332,1739988660733,-2015.79,0.00015342,2]
[353684333,1739988660743,-500.0,0.00015342,2]
[353684335,1739988660753,-1163.81,0.00015342,2]
[353684338,1739988660763,-611.96,0.00015342,2]
[353684340,1739988660773,-2382.21,0.00015342,2]
[353684342,1739988660783,-6044.15,0.00015342,2]
[353684343,1739988660793,-1011.0,0.00015342,2]
[353684346,1739988660802,-1268.26,0.00015342,2]
[353684347,1739988660811,-2033.33,0.00015342,2]
[353684350,1739988660822,-1189.52,0.00015342,2]
[353684352,1739988660832,-1101.67,0.00015342,2]
[353684354,1739988660841,-2055.1,0.00015342,2]
[353684356,1739988660851,-1533.09,0.00015342,2]
[353684358,1739988660861,-7584.55,0.00015342,2]
[353684360,1739988660871,-2979.97,0.00015342,2]
[353684362,1739988660881,-633.93,0.00015342,2]
[353684364,1739988660892,-703.24,0.00015342,2]
[353684366,1739988660902,-751.62,0.00015342,2]
[353684368,1739988660911,-1000.95075043,0.00015421,2]
[353684370,1739988660923,-1000.3801526,0.00015421,2]
[353684372,1739988660932,-741.51,0.00015424,2]
[353684374,1739988660942,-674.11,0.00015424,2]
[353684376,1739988660952,-709.3,0.00015424,2]
[353684378,1739988660963,-634.2,0.00015424,2]
[353684380,1739988660972,-504.41,0.00015424,2]
[353684382,1739988660983,-589.83,0.00015424,2]
[353684384,1739988660992,-23447.01,0.00015424,2]
[353684386,1739988661002,-903.6,0.00015424,2]
[353684388,1739988661012,-661.75,0.00015424,2]
[353684390,1739988661022,-560.56,0.00015424,2]
[353684398,1739988661093,-952.78,0.00015424,2]
[353684400,1739988661103,-2315.57,0.00015424,2]
[353684402,1739988661113,-3025.53,0.00015424,2]
[353684404,1739988661122,-1175.6,0.00015424,2]
[353684406,1739988661131,-979.27,0.00015424,2]
[353684408,1739988661142,-8610.83,0.00015424,2]
[353684410,1739988661154,-587.77,0.00015424,2]
[353684412,1739988661167,-981.23,0.00015424,2]
[353684414,1739988661176,-1054.51,0.00015424,2]
[353684416,1739988661186,-707.81,0.00015424,2]
[353684418,1739988661195,-2015.79,0.00015424,2]
[353684420,1739988661206,-483.68677832,0.00015424,2]
[353684422,1739988661216,-1163.81,0.00015424,2]
[353684424,1739988661226,-2382.21,0.00015424,2]
[353684426,1739988661236,-6044.15,0.00015424,2]
[353684428,1739988661246,-1011.0,0.00015424,2]
[353684430,1739988661255,-1268.26,0.00015424,2]
[353684432,1739988661265,-2033.33,0.00015424,2]
[353684434,1739988661275,-1189.52,0.00015424,2]
[353684436,1739988661286,-1101.67,0.00015424,2]
[353684438,1739988661296,-2055.1,0.00015424,2]
[353684440,1739988661306,-1533.09,0.00015424,2]
[353684443,1739988661319,-7584.55,0.00015424,2]
[353684445,1739988661330,-2979.97,0.00015424,2]
[353684447,1739988661341,-633.93,0.00015424,2]
[353684449,1739988661351,-703.24,0.00015424,2]
[353684451,1739988661361,-751.62,0.00015424,2]
[353684453,1739988661371,-741.51,0.00015506,2]
[353684455,1739988661380,-674.11,0.00015506,2]
[353684457,1739988661391,-709.3,0.00015506,2]
[353684459,1739988661402,-634.2,0.00015506,2]
[353684461,1739988661412,-504.41,0.00015506,2]
[353684463,1739988661422,-589.83,0.00015506,2]
[353684465,1739988661431,-23447.01,0.00015506,2]
[353684467,1739988661441,-903.6,0.00015506,2]
[353684468,1739988661457,-661.75,0.00015506,2]
[353684470,1739988661468,-560.56,0.00015506,2]
[353684473,1739988661478,-952.78,0.00015506,2]
[353684475,1739988661488,-2315.57,0.00015506,2]
[353684477,1739988661498,-3025.53,0.00015506,2]
[353684478,1739988661508,-1175.6,0.00015506,2]
[353684480,1739988661519,-979.27,0.00015506,2]
[353684482,1739988661529,-8610.83,0.00015506,2]
[353684484,1739988661539,-587.77,0.00015506,2]
[353684486,1739988661548,-981.23,0.00015506,2]
[353684488,1739988661559,-1054.51,0.00015506,2]
[353684491,1739988661572,-2015.79,0.00015506,2]
[353684493,1739988661592,-707.81,0.00015506,2]
[353684496,1739988661611,-1163.81,0.00015506,2]
[353684499,1739988661632,-2382.21,0.00015506,2]
[353684502,1739988661651,-6044.15,0.00015506,2]
[353684505,1739988661672,-1011.0,0.00015506,2]
[353684507,1739988661689,-1268.26,0.00015506,2]
[353684510,1739988661708,-2033.33,0.00015506,2]
[353684513,1739988661730,-1189.52,0.00015506,2]
[353684516,1739988661748,-1101.67,0.00015506,2]
[353684519,1739988661768,-2055.1,0.00015506,2]
[353684521,1739988661784,-1533.09,0.00015506,2]
[353684524,1739988661800,-7584.55,0.00015506,2]
[353684527,1739988661817,-2979.97,0.00015506,2]
[353684529,1739988661833,-633.93,0.00015506,2]
[353684532,1739988661848,-703.24,0.00015506,2]
[353684534,1739988661863,-751.62,0.00015506,2]
[353684536,1739988661878,-587.0,0.00015545,2]
[353684539,1739988661894,-741.65055816,0.00015589,2]
[353684541,1739988661909,-674.29019884,0.00015589,2]
[353684544,1739988661924,-709.46,0.00015589,2]
[353684546,1739988661940,-634.21,0.00015589,2]
[353684549,1739988661956,-504.46,0.00015589,2]
[353684550,1739988661971,-589.85289199,0.00015589,2]
[353684552,1739988661985,-23447.0702,0.00015589,2]
[353684553,1739988662001,-903.77188345,0.00015589,2]
[353684554,1739988662017,-661.91,0.00015589,2]
[353684555,1739988662032,-560.7657394,0.00015589,2]
[353684556,1739988662049,-952.79,0.00015589,2]
[353684557,1739988662059,-2315.76473889,0.00015589,2]
[353684558,1739988662069,-3025.61149695,0.00015589,2]
[353684559,1739988662079,-1175.72642689,0.00015589,2]
[353684560,1739988662090,-979.38222728,0.00015589,2]
[353684561,1739988662100,-8610.92247827,0.00015589,2]
[353684562,1739988662110,-587.79641406,0.00015589,2]
[353684563,1739988662119,-981.44201952,0.00015589,2]
[353684564,1739988662129,-1054.74139682,0.00015589,2]
[353684565,1739988662139,-2015.90474119,0.00015589,2]
[353684566,1739988662149,-708.04336587,0.00015589,2]
[353684567,1739988662160,-1164.03626714,0.00015589,2]
[353684568,1739988662171,-2382.36110362,0.00015589,2]
[353684569,1739988662182,-6044.26155046,0.00015589,2]
[353684570,1739988662192,-1011.05706573,0.00015589,2]
[353684571,1739988662202,-1268.44244067,0.00015589,2]
[353684572,1739988662212,-2033.4530646,0.00015589,2]
[353684573,1739988662223,-1189.68663562,0.00015589,2]
[353684574,1739988662232,-1101.83,0.00015589,2]
[353684575,1739988662242,-2055.23225558,0.00015589,2]
[353684581,1739988662426,-1533.15947542,0.00015589,2]
[353684583,1739988662440,-7584.70336621,0.00015589,2]